bitfinex/quotes_ETHUSD_20241212
["timestamp","ask_amount","ask_price","bid_price","bid_amount"]
[1734020651390,2.30501062,3957.1,3955.4,2.0]
[1734020651586,2.30501062,3957.5,3955.5,1.4211]
[1734020651946,2.30501062,3957.1,3955.5,1.4211]
[1734020652144,2.30501062,3956.7,3955.5,1.4211]
[1734020653077,0.23050106,3957.0,3955.5,1.4211]
[1734020653279,0.12453861,3956.5,3955.5,1.4211]
[1734020653680,2.30501062,3957.5,3955.5,1.4211]
[1734020654246,2.30501062,3957.1,3955.5,1.4211]
[1734020654446,0.23050106,3957.0,3955.6,0.14211]
[1734020654700,2.30501062,3957.5,3955.6,0.14211]
[1734020654896,0.55,3957.4,3955.7,1.343]
[1734020655324,0.55,3957.3,3955.7,1.343]
[1734020655941,3.55,3957.3,3955.7,1.343]
[1734020656537,0.12859467,3956.6,3955.7,1.343]
[1734020656702,0.12859467,3956.6,3955.7,1.491511]
[1734020657538,0.12859467,3956.6,3955.7,1.343]
[1734020662173,0.55,3956.5,3955.7,1.343]
[1734020662657,3.0,3956.4,3954.6,1.3306]
[1734020662858,0.55,3956.3,3954.6,1.3306]
[1734020663160,0.65288,3956.2,3954.7,0.15306]
[1734020663359,0.55,3956.1,3954.6,1.3306]
[1734020664862,0.55,3955.9,3954.6,1.3306]
[1734020665926,2.1,3955.9,3954.6,1.3306]
[1734020666122,5.04022731,3955.9,3954.6,1.3306]
[1734020666330,1.9007,3955.7,3954.2,1.4277]
[1734020668630,0.55,3955.7,3954.2,1.4277]
[1734020669247,2.1,3955.7,3954.2,1.4277]
[1734020669439,2.1,3955.7,3954.3,0.02528613]
[1734020669781,2.1,3955.7,3953.8,2.0]
[1734020669782,2.1,3955.7,3954.0,1.3472]
[1734020670079,1.55,3955.7,3954.4,1.3472]
[1734020672432,1.55,3955.7,3954.8,1.4697]
[1734020672774,1.55,3955.7,3954.7,2.0]
[1734020672775,3.1,3955.7,3955.2,1.4697]
[1734020673379,3.1,3955.7,3955.6,1.4697]
[1734020676085,4.65,3955.7,3955.6,3.4697]
[1734020676237,4.65,3955.7,3955.6,3.81667]
[1734020677163,4.65,3955.7,3955.6,4.16582314]
[1734020678256,2.91947048,3955.7,3955.6,8.3059307]
[1734020678438,1.40047048,3955.7,3955.6,6.8802307]
[1734020679235,1.40047048,3955.7,3955.6,3.6302307]
[1734020679439,1.40047048,3955.7,3955.6,6.0802307]
[1734020679736,1.40047048,3955.7,3955.6,5.74012314]
[1734020680275,2.95047048,3955.7,3955.6,8.26812314]
[1734020681077,2.95047048,3955.7,3955.6,8.81812314]
[1734020682285,2.95047048,3955.7,3955.6,8.26812314]
[1734020683493,4.50047048,3955.7,3955.6,8.26812314]
[1734020684286,4.50047048,3955.7,3955.6,5.26812314]
[1734020686162,4.50047048,3955.7,3955.6,4.91897]
[1734020686459,4.50047048,3955.7,3955.6,4.572]
[1734020687204,4.50047048,3955.7,3955.6,4.92115314]
[1734020687423,6.05047048,3955.7,3955.6,4.92115314]
[1734020687600,6.05047048,3955.7,3955.6,7.92115314]
[1734020688066,6.05047048,3955.7,3955.6,8.47115314]
[1734020688262,6.05047048,3955.7,3955.6,9.35075524]
[1734020688678,1.55,3955.9,3955.8,0.25]
[1734020688977,3.0,3957.9,3956.4,2.0]
[1734020689173,3.0,3957.9,3956.4,7.5276]
[1734020690803,1.55,3957.9,3956.4,7.5276]
[1734020691119,1.55,3957.9,3956.4,8.67675314]
[1734020691330,0.33314929,3956.5,3956.4,9.2668607]
[1734020691670,1.55,3957.9,3957.8,2.0]
[1734020691876,1.55,3957.9,3957.8,4.5267]
[1734020697915,1.55,3957.9,3957.8,2.5267]
[1734020701162,1.55,3957.9,3957.8,2.5555]
[1734020701301,1.55,3957.9,3957.8,2.90465314]
[1734020701502,1.55,3957.9,3957.8,5.90465314]
[1734020701733,1.55,3957.9,3957.8,6.45465314]
[1734020702137,1.55,3957.9,3957.8,6.70465314]
[1734020702347,1.55,3957.9,3957.8,6.95465314]
[1734020703246,1.55,3957.9,3957.8,24.1985647]
[1734020703473,1.45000167,3957.9,3957.8,21.90615377]
[1734020703751,1.45000167,3957.9,3957.8,18.29083677]
[1734020703953,0.19000161,3957.9,3957.8,18.0540517]
[1734020704160,1.55,3959.0,3957.8,18.0540517]
[1734020704161,1.55,3959.0,3958.8,2.0288]
[1734020704304,1.55,3959.0,3958.8,4.5548]
[1734020704503,1.55,3959.0,3958.8,4.90395314]
[1734020704909,1.55,3959.0,3958.8,4.5548]
[1734020705375,1.55,3959.0,3958.8,8.1048]
[1734020705651,1.55,3959.0,3958.9,3.8288]
[1734020705867,3.1,3959.3,3958.9,3.8288]
[1734020705868,3.1,3959.3,3959.2,2.25]
[1734020706022,3.1,3959.3,3959.2,8.95020097]
[1734020706223,3.1,3959.3,3959.2,8.95375314]
[1734020706443,3.1,3959.3,3959.2,8.45375314]
[1734020707254,3.1,3959.3,3959.2,7.90375314]
[1734020707762,3.1,3959.3,3959.2,8.45375314]
[1734020707913,3.1,3959.3,3959.2,7.90375314]
[1734020708464,3.1,3959.3,3959.2,8.45375314]
[1734020710147,3.1,3959.3,3959.2,8.70375314]
[1734020711052,2.49848237,3959.3,3959.2,8.70375314]
[1734020712637,2.49848237,3959.3,3959.2,8.8284417]
[1734020713367,2.23110618,3959.3,3959.2,8.8284417]
[1734020717322,1.4483,3961.4,3960.9,2.0]
[1734020717474,1.4483,3961.4,3960.9,4.5247]
[1734020719103,1.59313,3961.4,3960.9,2.5247]
[1734020720421,1.59313,3961.4,3960.9,4.5247]
[1734020720768,1.4483,3961.4,3960.9,4.5247]
[1734020721278,1.4483,3961.4,3960.9,2.5247]
[1734020724674,4.4483,3961.4,3960.9,2.5247]
[1734020724881,1.4607,3961.2,3960.9,2.5247]
[1734020725190,0.07879391,3961.1,3960.9,2.5247]
[1734020725390,2.30128604,3961.5,3960.9,2.5247]
[1734020725391,1.4607,3961.0,3960.9,2.5247]
[1734020725601,1.60677,3961.0,3960.9,2.5247]
[1734020726078,1.4607,3961.0,3960.9,2.5247]
[1734020726294,1.4005,3962.1,3960.9,2.87385314]
[1734020726513,1.4005,3962.1,3960.9,2.5247]
[1734020728106,0.07877251,3962.0,3960.9,2.5247]
[1734020728307,1.4005,3962.1,3960.9,2.5247]
[1734020728504,0.21882213,3962.0,3960.9,2.5247]
[1734020728703,1.4611,3961.9,3960.9,2.5247]
[1734020728906,1.53987482,3961.8,3960.9,2.5247]
[1734020729180,2.30128604,3961.9,3960.9,2.5247]
[1734020729181,1.4611,3961.6,3960.9,2.5247]
[1734020729381,1.4611,3961.4,3960.9,2.5247]
[1734020733539,1.45163365,3961.4,3960.9,2.5247]
[1734020733854,0.14516336,3961.3,3960.9,2.5247]
[1734020735762,1.45163365,3961.4,3960.9,2.5247]
[1734020739676,1.4004,3962.1,3961.3,2.0]
[1734020739986,2.30128604,3963.9,3961.8,0.1935]
[1734020740196,1.82551821,3963.8,3961.9,0.02523527]
[1734020740484,1.5074,3963.6,3961.8,0.1935]
[1734020740626,1.5074,3963.6,3961.9,2.524]
[1734020740828,0.07874673,3963.5,3961.9,2.524]
[1734020741054,0.07874673,3963.4,3961.9,2.524]
[1734020741272,0.07874673,3963.3,3961.9,2.524]
[1734020741442,0.15861467,3963.4,3961.9,2.524]
[1734020741646,0.07874676,3963.3,3961.9,2.524]
[1734020741835,0.15861467,3963.4,3961.9,2.524]
[1734020742030,0.07874654,3963.3,3961.9,2.524]
[1734020742236,1.5067,3963.4,3961.9,2.524]
[1734020742456,0.07874841,3963.3,3961.9,2.524]
[1734020742670,1.5067,3963.4,3961.9,2.524]
[1734020742871,1.5067,3963.4,3962.1,2.0]
[1734020743075,1.5067,3963.4,3962.1,4.5239]
[1734020743076,0.39365353,3963.3,3962.1,4.5239]
[1734020743239,1.5067,3963.4,3962.1,4.5239]
[1734020743940,1.5067,3963.4,3962.2,0.02523537]
[1734020744274,1.5067,3963.4,3962.2,2.54903537]
[1734020744431,1.5067,3963.4,3962.2,2.5238]
[1734020746240,1.5067,3963.4,3962.3,0.02523477]
[1734020746466,0.15067,3963.3,3962.3,2.5238]
[1734020746981,0.15067,3963.3,3962.4,0.02523421]
[1734020747297,0.15067,3963.3,3962.4,2.5237]
[1734020748543,1.5,3963.2,3962.4,2.5237]
[1734020748900,2.30128604,3963.1,3962.4,2.5237]
[1734020749085,0.3951956,3963.0,3962.4,2.5237]
[1734020749237,2.30128604,3962.7,3962.4,2.5237]
[1734020749442,1.5,3962.9,3962.4,2.5237]
[1734020751653,2.30128604,3962.7,3962.4,2.5237]
[1734020751874,4.524,3962.6,3962.4,2.5237]
[1734020752045,0.6825286,3962.5,3962.4,2.5237]
[1734020753798,2.1228286,3962.5,3962.4,2.5237]
[1734020754158,2.2016006,3962.5,3962.4,2.5237]
[1734020754400,2.7516006,3962.5,3962.4,2.5237]
[1734020754602,5.7516006,3962.5,3962.4,2.16817215]
[1734020755166,5.7516006,3962.5,3962.4,0.63217215]
[1734020756435,0.55,3962.4,3960.3,0.1935]
[1734020756567,2.30128604,3961.7,3960.3,0.1935]
[1734020756765,1.4022,3961.6,3960.3,0.1935]
[1734020757166,2.30128604,3961.2,3960.3,0.1935]
[1734020757376,3.70348604,3961.6,3960.3,0.1935]
[1734020760433,1.4022,3961.6,3960.3,2.50409242]
[1734020760635,1.4022,3961.6,3960.3,2.1935]
[1734020761407,3.70348604,3961.6,3960.3,2.1935]
[1734020761831,3.47825286,3962.3,3960.3,2.1935]
[1734020762055,0.47825286,3962.3,3961.0,1.5429]
[1734020762213,2.1676286,3962.5,3961.0,1.5429]
[1734020762410,2.30128604,3962.4,3961.0,1.5429]
[1734020762949,2.30128604,3962.0,3961.0,1.5429]
[1734020763742,1.3957,3961.9,3961.0,1.5429]
[1734020764849,1.3957,3961.9,3960.1,0.31059242]
[1734020764850,4.3957,3961.9,3960.6,1.3936]
[1734020765021,2.30128604,3961.5,3960.6,1.3936]
[1734020765223,2.30128604,3961.5,3960.2,1.3936]
[1734020766147,1.4675,3961.4,3960.2,1.3936]
[1734020766322,1.4675,3961.4,3956.5,0.23629917]
[1734020766323,2.30128604,3961.1,3959.6,1.5091]
[1734020767670,3.6696986,3961.8,3959.6,1.5091]
[1734020767671,2.30128604,3960.2,3959.6,1.5091]
[1734020767907,2.30128604,3960.2,3959.0,2.31059242]
[1734020767908,0.2301286,3960.1,3959.2,1.5341]
[1734020768116,2.30128604,3959.8,3959.2,1.5341]
[1734020768256,2.30128604,3959.8,3957.1,0.25]
[1734020768257,2.30128604,3959.4,3958.8,1.5341]
[1734020768462,3.80258604,3959.8,3958.8,1.5341]
[1734020768860,2.30128604,3959.8,3958.8,1.5341]
[1734020769062,2.8544275,3959.8,3958.8,1.5341]
[1734020770587,2.30128604,3959.4,3958.8,1.5341]
[1734020771487,2.8544275,3959.8,3958.8,1.5341]
[1734020771818,2.30128604,3959.8,3958.8,1.5341]
[1734020772320,2.30128604,3959.4,3958.8,1.5341]
[1734020772526,2.30128604,3959.4,3958.1,1.4471]
[1734020772527,3.84098604,3959.4,3958.1,1.4471]
[1734020774630,2.30128604,3959.4,3958.1,1.4471]
[1734020775316,3.0,3959.7,3958.5,1.4835]
[1734020775521,3.2301286,3960.1,3958.5,1.79409242]
[1734020775690,0.55314146,3960.0,3958.5,1.79409242]
[1734020776017,2.30128604,3959.8,3958.5,4.0092]
[1734020777033,2.30128604,3959.8,3958.6,1.4517]
[1734020777217,2.30128604,3959.8,3958.6,3.9778]
[1734020778439,2.30128604,3959.4,3958.6,3.9778]
[1734020778738,0.3695886,3959.3,3958.6,3.9778]
[1734020780002,2.30128604,3959.0,3958.6,2.5261]
[1734020780704,1.4154,3958.9,3958.6,2.5261]
[1734020782561,0.55,3958.8,3958.6,2.5261]
[1734020783465,4.4154,3958.9,3958.6,2.5261]
[1734020786144,2.30128604,3956.8,3955.9,1.496]
[1734020786308,2.30128604,3956.4,3955.7,0.26326865]
[1734020786733,2.30128604,3956.4,3955.5,1.496]
[1734020787143,3.0,3956.6,3955.5,1.496]
[1734020787144,2.9415891,3956.3,3955.5,1.496]
[1734020787343,2.9415891,3956.3,3955.0,0.31059242]
[1734020787570,2.9415891,3955.8,3954.7,2.0]
[1734020787877,0.29112136,3955.7,3954.5,1.496]
[1734020788750,0.29112136,3955.7,3954.5,1.80659242]
[1734020789085,2.9415891,3954.7,3954.1,1.4623]
[1734020789659,2.9415891,3955.2,3954.1,1.4623]
[1734020789840,3.0,3955.1,3954.1,1.4623]
[1734020791568,1.4322,3955.0,3953.7,2.0]
[1734020791974,2.9415891,3954.7,3953.4,1.4959]
[1734020792277,3.37896801,3954.7,3953.4,1.4959]
[1734020792640,1.4322,3955.0,3953.6,2.0]
[1734020792969,1.4322,3955.0,3953.7,1.3974]
[1734020793670,2.9415891,3954.6,3953.7,1.3974]
[1734020793877,1.4322,3955.0,3953.7,1.3974]
[1734020794573,2.9415891,3955.1,3953.7,1.3974]
[1734020794877,3.69755142,3955.1,3953.7,1.3974]
[1734020795576,2.9415891,3954.6,3953.7,1.3974]
[1734020797542,1.4058,3955.0,3953.7,1.3974]
[1734020797744,3.69755142,3955.1,3953.8,0.31059242]
[1734020797978,3.69755142,3955.1,3953.7,3.3974]
[1734020798186,0.38239856,3955.0,3953.7,3.3974]
[1734020800296,1.9761,3954.9,3953.7,1.3974]
[1734020802005,2.9415891,3954.1,3953.7,1.3974]
[1734020802183,2.9415891,3954.1,3953.5,0.1646646]
[1734020802384,1.9761,3954.9,3953.5,0.1646646]
[1734020802385,2.9415891,3954.6,3953.5,0.1646646]
[1734020802590,0.29415891,3954.5,3953.5,0.1646646]
[1734020806063,3.29415891,3954.5,3953.5,0.1646646]
[1734020807062,0.12681341,3954.4,3953.5,0.1646646]
[1734020809190,5.43732543,3954.4,3953.5,0.1646646]
[1734020810196,2.43732543,3954.4,3953.5,0.1646646]
[1734020810493,0.27314843,3954.3,3953.5,0.1646646]
[1734020812069,2.31051202,3954.4,3953.5,0.1646646]
[1734020812275,2.31051202,3955.5,3953.7,1.4743]
[1734020812493,1.010823,3956.2,3954.1,1.4743]
[1734020812494,2.31051202,3955.9,3954.1,1.4743]
[1734020812694,0.20619127,3955.8,3954.5,1.4743]
[1734020813012,2.31051202,3956.3,3954.9,1.4743]
[1734020813185,0.2310512,3956.2,3954.9,1.4743]
[1734020813391,2.31051202,3956.3,3955.1,1.4743]
[1734020813770,1.519,3957.1,3955.1,1.4743]
[1734020813771,2.31051202,3956.9,3955.1,1.4743]
[1734020813972,2.43372762,3956.5,3955.1,1.4743]
[1734020814230,0.07887982,3956.4,3955.1,1.4743]
[1734020814434,2.43372762,3956.5,3955.1,1.4743]
[1734020814435,2.31051202,3956.1,3955.1,1.4743]
[1734020814691,1.49477982,3956.3,3953.0,6.43]
[1734020814692,2.31051202,3955.7,3954.0,1.4961]
[1734020814924,0.459409,3956.0,3954.0,1.4961]
[1734020814925,2.31051202,3955.3,3954.0,1.4961]
[1734020815276,0.07890422,3955.2,3954.0,1.4961]
[1734020815477,0.07890422,3955.1,3954.0,1.4961]
[1734020815671,0.07890422,3955.0,3954.0,1.4961]
[1734020815924,0.07890422,3954.9,3954.0,1.4961]
[1734020816137,5.31051202,3955.3,3954.0,1.4961]
[1734020816284,0.75154819,3955.2,3954.0,1.4961]
[1734020816619,0.07890699,3955.1,3954.0,1.4961]
[1734020816821,0.6726412,3955.2,3954.0,1.4961]
[1734020816822,0.07890699,3955.0,3954.0,1.4961]
[1734020817122,0.07890699,3954.9,3954.0,1.4961]
[1734020817326,0.07890699,3954.8,3954.0,1.4961]
[1734020817616,1.4159,3955.4,3954.0,1.4961]
[1734020817826,0.22049545,3955.3,3954.0,1.4961]
[1734020818112,0.07890545,3955.2,3954.0,1.4961]
[1734020818431,0.07890545,3955.1,3954.0,1.4961]
[1734020818631,0.07890545,3955.0,3954.0,1.4961]
[1734020818781,0.07890545,3954.9,3954.0,1.4961]
[1734020818981,0.07890545,3954.8,3954.0,1.4961]
[1734020819186,0.07891264,3954.7,3954.0,1.4961]
[1734020819400,0.14159,3955.3,3954.2,1.4602]
[1734020819736,3.0,3955.7,3954.2,1.4602]
[1734020819737,0.07890772,3955.2,3954.2,1.4602]
[1734020820029,3.0,3955.7,3954.2,1.4602]
[1734020820030,0.07890772,3955.1,3954.2,1.4602]
[1734020820211,0.07890772,3955.0,3954.2,1.4602]
[1734020820388,0.07890772,3954.9,3954.2,1.4602]
[1734020820587,0.07890772,3954.8,3954.2,1.4602]
[1734020820782,3.0,3955.7,3954.2,1.4602]
[1734020820991,0.82412188,3955.6,3954.2,1.4602]
[1734020821219,0.07890781,3955.5,3954.2,1.4602]
[1734020821429,0.07890781,3955.4,3954.2,1.4602]
[1734020821585,0.74521407,3955.6,3954.2,1.4602]
[1734020821586,0.07890781,3955.3,3954.2,1.4602]
[1734020821780,0.07890781,3955.2,3954.2,1.4602]
[1734020822028,0.74521407,3955.6,3954.2,1.4602]
[1734020822029,0.07890781,3955.1,3954.2,1.4602]
[1734020822234,0.07890781,3955.0,3954.2,1.4602]
[1734020822388,0.07890781,3954.9,3954.2,1.4602]
[1734020822587,0.07890781,3954.8,3954.2,1.4602]
[1734020822902,0.55,3955.5,3954.2,1.4602]
[1734020823234,0.74521407,3955.6,3954.2,1.4602]
[1734020823235,0.50843194,3955.4,3954.2,1.4602]
[1734020823429,0.07891053,3955.3,3954.2,1.4602]
[1734020823634,0.07891053,3955.2,3954.2,1.4602]
[1734020823800,0.07891053,3955.1,3954.2,1.4602]
[1734020824005,0.07891053,3955.0,3954.2,1.4602]
[1734020824224,0.07891053,3954.9,3954.2,1.4602]
[1734020824450,0.74521407,3955.6,3954.4,1.5387]
[1734020824654,0.66876547,3955.5,3954.4,1.5387]
[1734020824971,0.07890466,3955.4,3954.4,1.5387]
[1734020825127,0.07890466,3955.3,3954.5,1.56398439]
[1734020825313,5.27950944,3956.4,3954.9,2.0]
[1734020825514,5.27950944,3956.4,3955.1,1.5387]
[1734020825515,0.07888919,3956.3,3955.1,1.5387]
[1734020825853,0.61472905,3956.2,3955.1,1.5387]
[1734020826053,1.51248919,3956.1,3954.2,1.4769]
[1734020826253,0.07888919,3956.0,3954.2,1.4769]
[1734020826571,0.07888919,3955.9,3954.2,1.4769]
[1734020826717,0.07888919,3955.8,3954.2,1.4769]
[1734020826914,0.07888919,3955.7,3954.2,1.4769]
[1734020827131,0.07888919,3955.6,3954.2,1.4769]
[1734020827317,0.07888919,3955.5,3954.2,1.4769]
[1734020827543,0.07888919,3955.4,3954.2,1.4769]
[1734020827723,0.07890897,3955.3,3954.2,1.4769]
[1734020828052,0.07890897,3955.2,3954.2,1.4769]
[1734020828251,0.55,3956.0,3954.2,1.4769]
[1734020828252,0.07890897,3955.1,3954.2,1.4769]
[1734020828440,2.94244066,3955.8,3954.2,1.4769]
[1734020828441,0.07890897,3955.0,3954.2,1.4769]
[1734020828624,1.4537,3955.3,3954.2,1.4769]
[1734020828817,0.07891279,3955.2,3954.2,1.4769]
[1734020829018,0.07891279,3955.1,3954.2,1.4769]
[1734020829226,0.07891279,3955.0,3954.2,1.4769]
[1734020829419,1.4537,3955.3,3954.2,1.4769]
[1734020829752,0.22428256,3955.2,3954.2,1.4769]
[1734020829957,0.07891256,3955.1,3954.2,1.4769]
[1734020830256,0.55,3955.6,3954.2,1.4769]
[1734020830461,0.07890953,3955.5,3954.2,1.4769]
[1734020830619,4.75754407,3955.7,3954.2,1.4769]
[1734020830620,0.07890953,3955.4,3954.2,1.4769]
[1734020830926,0.07890953,3955.3,3954.2,1.4769]
[1734020831129,0.07890953,3955.2,3954.4,1.4858]
[1734020831368,0.76999847,3955.6,3954.4,1.4858]
[1734020831516,0.07890333,3955.5,3954.4,1.4858]
[1734020831727,2.94244066,3956.3,3954.3,2.0]
[1734020831728,2.94244066,3956.3,3954.7,2.0]
[1734020831971,0.07889278,3956.1,3954.8,1.4412]
[1734020832175,0.07889278,3956.0,3954.8,1.4412]
[1734020832377,0.07889278,3955.9,3954.8,1.4412]
[1734020832540,0.88366827,3956.1,3954.8,1.4412]
[1734020833229,0.07889289,3956.0,3954.8,1.4412]
[1734020833426,0.88366827,3956.1,3954.8,1.4412]
[1734020833427,0.07889289,3955.9,3954.8,1.4412]
[1734020833671,0.88366827,3956.1,3954.8,1.4412]
[1734020833968,0.77443826,3956.0,3954.8,1.4412]
[1734020834169,0.69554366,3956.0,3954.8,1.4412]
[1734020834468,0.07889619,3955.9,3954.8,1.4412]
[1734020834670,0.69554366,3956.0,3954.8,1.4412]
[1734020834882,0.07889502,3955.9,3954.8,1.4412]
[1734020835087,0.1658107,3955.8,3954.8,1.4412]
[1734020835271,3.10825136,3955.8,3954.8,1.4412]
[1734020835568,3.10825136,3955.8,3953.0,0.12944094]
[1734020835569,0.55,3955.6,3953.8,1.5513]
[1734020835773,0.55,3955.4,3953.8,1.5513]
[1734020835957,0.07890657,3955.3,3953.8,1.5513]
[1734020836262,3.07890657,3955.2,3953.8,1.5513]
[1734020836467,0.73604129,3955.1,3953.8,1.5513]
[1734020836675,0.07890657,3955.0,3953.8,1.5513]
[1734020836877,0.65713472,3955.1,3953.8,1.5513]
[1734020837046,0.07891603,3955.0,3953.8,1.5513]
[1734020837247,0.65713472,3955.1,3953.8,1.5513]
[1734020837460,0.65995754,3955.0,3953.8,1.5513]
[1734020838661,0.65995754,3955.0,3953.8,1.4327]
[1734020838874,3.0,3955.2,3953.8,1.4327]
[1734020839316,0.55,3955.6,3953.8,1.4327]
[1734020839458,0.55,3955.4,3953.8,1.4327]
[1734020839655,0.07891347,3955.3,3953.8,1.4327]
[1734020839962,3.07891347,3955.2,3953.8,1.4327]
[1734020840155,0.55,3955.0,3953.8,1.4327]
[1734020840357,2.94244066,3954.8,3953.8,1.4327]
[1734020840785,0.55,3954.7,3953.8,1.4327]
[1734020841150,2.94244066,3954.8,3952.8,2.0]
[1734020841151,0.55,3954.5,3952.8,2.0]
[1734020841352,0.55,3954.5,3953.4,1.4132]
[1734020842849,0.55,3954.5,3952.3,0.31059242]
[1734020842850,2.5293,3953.7,3952.3,0.31059242]
[1734020843050,1.514,3954.4,3950.0,2.0]
[1734020843051,3.55,3952.3,3950.0,2.0]
[1734020843278,3.55,3952.3,3950.1,1.4917]
[1734020843279,2.94244066,3951.9,3950.1,1.4917]
[1734020843492,3.55,3951.8,3950.1,1.4917]
[1734020844674,1.4701,3952.2,3950.5,1.524]
[1734020845149,0.55,3952.1,3950.5,1.524]
[1734020845352,0.50201,3952.0,3950.5,1.524]
[1734020845985,2.94244066,3951.9,3950.5,1.524]
[1734020848961,3.0,3950.8,3949.6,0.1646646]
[1734020849163,0.55,3950.7,3949.6,0.1646646]
[1734020849480,2.94244066,3950.9,3949.6,0.1646646]
[1734020849481,0.64924407,3950.6,3949.6,0.1646646]
[1734020849662,0.55,3951.3,3949.6,0.1646646]
[1734020853080,2.94244066,3950.9,3949.6,0.1646646]
[1734020853470,3.55,3951.3,3949.6,0.1646646]
[1734020853678,3.55,3951.3,3949.7,1.4435]
[1734020853921,0.12673607,3951.8,3949.6,0.1646646]
[1734020853922,1.4815,3951.8,3949.9,1.4435]
[1734020854254,0.49259507,3951.7,3949.9,1.4435]
[1734020854525,2.94244066,3951.4,3949.9,1.4435]
[1734020855883,0.55,3951.3,3949.9,1.4435]
[1734020857219,3.0,3950.8,3949.9,1.4435]
[1734020857380,3.55,3950.8,3949.9,1.4435]
[1734020857581,0.64924407,3950.7,3949.9,1.4435]
[1734020858916,2.94244066,3951.6,3949.9,1.4435]
[1734020859115,2.94244066,3951.6,3950.0,1.4672]
[1734020860516,2.94244066,3951.6,3950.1,1.4819]
[1734020861589,0.55,3951.9,3950.1,1.4819]
[1734020861794,3.0,3951.8,3950.2,1.4982]
[1734020862006,0.79388407,3951.7,3950.2,1.4982]
[1734020864184,2.94244066,3952.4,3950.4,1.4195]
[1734020864185,0.55,3952.3,3950.4,1.4195]
[1734020864385,2.94244066,3952.9,3950.6,1.4195]
[1734020864589,4.38184066,3952.9,3950.6,1.4195]
[1734020864785,4.38184066,3952.9,3950.7,1.4195]
[1734020864985,4.38184066,3952.9,3950.8,1.44480737]
[1734020865198,0.43818407,3952.8,3950.9,3.4195]
[1734020865390,0.43818407,3952.8,3950.9,5.9506]
[1734020865812,2.94244066,3952.4,3950.9,3.9506]
[1734020866191,3.0,3952.3,3950.9,3.9506]
[1734020866727,3.0,3952.3,3951.0,1.4884]
[1734020867025,0.43818407,3952.8,3951.0,1.4884]
[1734020867026,0.59424407,3952.2,3951.0,1.4884]
[1734020867241,3.43818407,3952.8,3951.1,1.4561]
[1734020867388,3.43818407,3952.8,3951.2,1.4561]
[1734020867587,3.43818407,3952.8,3951.3,1.4561]
[1734020867788,3.43818407,3952.8,3951.3,3.9869]
[1734020868587,0.55,3952.7,3951.3,3.9869]
[1734020868791,0.55,3952.5,3951.3,3.9869]
[1734020870412,0.55,3952.3,3951.3,3.9869]
[1734020870612,0.62896818,3952.3,3951.3,3.9869]
[1734020870931,0.55,3952.4,3951.3,3.9869]
[1734020871112,0.07896818,3952.3,3951.3,3.9869]
[1734020871313,0.07896682,3952.2,3951.3,3.9869]
[1734020871497,0.55,3952.4,3951.3,3.9869]
[1734020871698,0.83700247,3952.6,3951.3,3.9869]
[1734020871699,0.55,3952.2,3951.3,3.9869]
[1734020871916,0.07896943,3952.1,3951.3,3.9869]
[1734020872093,0.55,3952.2,3951.3,3.9869]
[1734020872293,0.07896986,3952.1,3951.3,3.9869]
[1734020872503,0.13870025,3952.3,3951.3,3.9869]
[1734020872504,0.13870025,3952.3,3951.4,0.02530689]
[1734020872723,0.13870025,3952.3,3951.4,3.9515]
[1734020872905,0.07896935,3952.2,3951.4,3.9515]
[1734020873102,1.4394,3952.9,3951.4,3.9515]
[1734020873103,0.55,3952.8,3951.4,3.9515]
[1734020873308,0.55,3952.6,3951.5,1.5036]
[1734020873613,0.55,3952.4,3951.5,4.0343]
[1734020873924,0.07896458,3952.3,3951.5,4.0343]
[1734020874129,0.07896458,3952.2,3951.5,4.0343]
[1734020874430,1.4394,3952.9,3951.5,4.0343]
[1734020874616,0.55,3952.7,3951.5,4.0343]
[1734020874794,0.07895921,3952.6,3951.5,4.0343]
[1734020874993,0.07895921,3952.5,3951.5,4.0343]
[1734020875233,0.07895921,3952.4,3951.5,4.0343]
[1734020875605,0.07895921,3952.3,3951.5,4.0343]
[1734020875938,0.55,3952.7,3951.5,4.0343]
[1734020876103,3.0,3952.8,3951.5,4.0343]
[1734020876104,0.55,3952.5,3951.5,4.0343]
[1734020876310,0.55,3952.3,3951.5,4.0343]
[1734020876628,0.07896275,3952.2,3951.5,4.0343]
[1734020876843,0.64924407,3952.6,3951.5,4.0343]
[1734020876844,0.55,3952.5,3951.5,4.0343]
[1734020877135,0.55,3952.3,3951.5,4.0343]
[1734020877306,0.07896556,3952.2,3951.5,4.0343]
[1734020877510,0.55,3952.5,3951.5,4.0343]
[1734020877714,0.55,3952.3,3951.5,4.0343]
[1734020877914,0.07896662,3952.2,3951.5,4.0343]
[1734020878110,0.55,3952.0,3951.5,4.0343]
[1734020878310,0.07897109,3951.9,3951.5,2.5307]
[1734020878521,0.55,3952.2,3951.5,2.5307]
[1734020878801,3.0,3952.3,3951.5,2.5307]
[1734020878802,0.55,3952.0,3951.5,2.5307]
[1734020879133,0.55,3951.8,3951.5,2.5307]
[1734020879303,0.55,3951.6,3951.5,2.5307]
[1734020879504,0.07897254,3951.6,3951.5,2.5307]
[1734020879741,0.62897254,3951.6,3951.5,2.5307]
[1734020880108,0.83522979,3951.6,3951.5,2.5307]
[1734020883656,3.55,3951.5,3949.7,1.5176]
[1734020883857,2.39516098,3951.1,3949.7,1.5176]
[1734020884069,3.62897254,3951.0,3949.7,1.5176]
[1734020884205,0.55,3950.6,3949.7,1.5176]
[1734020884407,0.55,3950.4,3949.7,1.5176]
[1734020884646,0.55,3950.2,3949.7,1.5176]
[1734020885542,0.55,3950.2,3949.0,0.25196306]
[1734020885839,3.0,3951.1,3949.2,1.4772]
[1734020885840,0.55,3950.5,3949.2,1.4772]
[1734020886043,0.55,3950.3,3949.2,1.4772]
[1734020886265,0.55,3950.1,3949.2,1.4772]